[Event "Betsys MČR v online bleskovém šachu 2021"]
[Site "Chess.com"]
[Date "2021.04.17"]
[Round "7"]
[White "fera_v"]
[Black "Lukuluss88"]
[Result "1-0"]
[WhiteElo "2241"]
[BlackElo "2006"]
[TimeControl "180+1"]
[EndTime "10:07:20 PDT"]
[Termination "Uživatel fera_v zvítězil po vzdání soupeře"]

1. e4 {[%clk 0:03:00.9]} 1... d5 {[%clk 0:02:59.3]} 2. exd5 {[%clk 0:03:00.1]}
2... Qxd5 {[%clk 0:02:59.2]} 3. Nc3 {[%clk 0:02:58.8]} 3... Qa5 {[%clk
0:02:59.2]} 4. d4 {[%clk 0:02:58.9]} 4... c6 {[%clk 0:02:59.5]} 5. Bc4 {[%clk
0:02:58.7]} 5... Bf5 {[%clk 0:02:58.6]} 6. Nf3 {[%clk 0:02:58.6]} 6... e6 {[%clk
0:02:58.8]} 7. Bd2 {[%clk 0:02:57.9]} 7... Qc7 {[%clk 0:02:57.9]} 8. Qe2 {[%clk
0:02:57.7]} 8... Be7 {[%clk 0:02:51.4]} 9. O-O-O {[%clk 0:02:56.3]} 9... Nd7
{[%clk 0:02:50.5]} 10. Ne5 {[%clk 0:02:55.2]} 10... Nxe5 {[%clk 0:02:46.8]} 11.
dxe5 {[%clk 0:02:54.4]} 11... O-O-O {[%clk 0:02:44.7]} 12. g4 {[%clk 0:02:51.3]}
12... Bg6 {[%clk 0:02:44.6]} 13. f4 {[%clk 0:02:48.3]} 13... h6 {[%clk
0:02:44.4]} 14. Rhf1 {[%clk 0:02:47.5]} 14... Bb4 {[%clk 0:02:29.8]} 15. f5
{[%clk 0:02:45]} 15... exf5 {[%clk 0:02:25.5]} 16. gxf5 {[%clk 0:02:44.5]} 16...
Bh7 {[%clk 0:02:25]} 17. e6 {[%clk 0:02:35.2]} 17... fxe6 {[%clk 0:02:22.4]} 18.
Bxe6+ {[%clk 0:02:23.2]} 18... Kb8 {[%clk 0:02:21.8]} 19. Bf4 {[%clk 0:02:21.6]}
19... Bd6 {[%clk 0:02:20.4]} 20. Rxd6 {[%clk 0:02:17.7]} 20... Rxd6 {[%clk
0:02:19.9]} 21. Ne4 {[%clk 0:02:08.8]} 1-0

[Event "Betsys MČR v online bleskovém šachu 2021"]
[Site "Chess.com"]
[Date "2021.04.17"]
[Round "7"]
[White "JindrichT_JR_CZE"]
[Black "Ondre2836"]
[Result "0-1"]
[WhiteElo "967"]
[BlackElo "1244"]
[TimeControl "180+1"]
[EndTime "10:07:26 PDT"]
[Termination "Uživatel Ondre2836 zvítězil po vzdání soupeře"]

1. e4 {[%clk 0:02:33.2]} 1... d5 {[%clk 0:02:59.1]} 2. exd5 {[%clk 0:02:31.7]}
2... Qxd5 {[%clk 0:02:58.6]} 3. Nc3 {[%clk 0:02:30.9]} 3... Qa5 {[%clk
0:02:57.8]} 4. Nf3 {[%clk 0:02:28.5]} 4... Nf6 {[%clk 0:02:56.3]} 5. d4 {[%clk
0:02:27]} 5... Bg4 {[%clk 0:02:54.9]} 6. Bf4 {[%clk 0:02:25.8]} 6... Nc6 {[%clk
0:02:46.7]} 7. h3 {[%clk 0:02:19.4]} 7... Bh5 {[%clk 0:02:45.5]} 8. g4 {[%clk
0:02:17.6]} 8... Bg6 {[%clk 0:02:43.8]} 9. Nh4 {[%clk 0:02:15.3]} 9... O-O-O
{[%clk 0:02:30]} 10. Nxg6 {[%clk 0:02:00]} 10... hxg6 {[%clk 0:02:27.4]} 11. Qd2
{[%clk 0:01:55.8]} 11... Rxd4 {[%clk 0:02:25.6]} 12. Qe3 {[%clk 0:01:46.7]}
12... Nd5 {[%clk 0:02:21.2]} 13. Qf3 {[%clk 0:01:38.6]} 0-1

[Event "Betsys MČR v online bleskovém šachu 2021"]
[Site "Chess.com"]
[Date "2021.04.17"]
[Round "7"]
[White "TomasOrnet1"]
[Black "NikolaKusova"]
[Result "1/2-1/2"]
[WhiteElo "1496"]
[BlackElo "1076"]
[TimeControl "180+1"]
[EndTime "10:07:29 PDT"]
[Termination "Remíza dohodou"]

1. e4 {[%clk 0:02:49.7]} 1... e5 {[%clk 0:02:58.2]} 2. Bc4 {[%clk 0:02:42.6]}
2... Nf6 {[%clk 0:02:55.7]} 3. d3 {[%clk 0:02:28.5]} 3... Bc5 {[%clk 0:02:52]}
4. Nf3 {[%clk 0:02:26]} 4... Nc6 {[%clk 0:02:47.4]} 5. O-O {[%clk 0:02:24.7]}
5... O-O {[%clk 0:02:43.5]} 6. Bg5 {[%clk 0:02:22]} 6... d6 {[%clk 0:02:36.6]}
7. Nc3 {[%clk 0:02:20.9]} 7... Re8 {[%clk 0:02:32.5]} 8. Nd5 {[%clk 0:02:17.5]}
8... Rf8 {[%clk 0:02:28.3]} 9. Bxf6 {[%clk 0:02:13.1]} 9... gxf6 {[%clk
0:02:25.8]} 10. Qd2 {[%clk 0:02:09.6]} 10... Kh8 {[%clk 0:02:20]} 11. Qh6 {[%clk
0:02:03.6]} 11... Rg8 {[%clk 0:02:17.9]} 12. Qxf6+ {[%clk 0:02:02.3]} 12... Qxf6
{[%clk 0:02:15.7]} 13. Nxf6 {[%clk 0:02:00.8]} 13... Rg6 {[%clk 0:02:11.4]} 14.
Nd5 {[%clk 0:01:59.4]} 14... Be6 {[%clk 0:01:59.9]} 1/2-1/2

[Event "Betsys MČR v online bleskovém šachu 2021"]
[Site "Chess.com"]
[Date "2021.04.17"]
[Round "7"]
[White "starypomalymuz"]
[Black "dino5517"]
[Result "1-0"]
[WhiteElo "1760"]
[BlackElo "1389"]
[TimeControl "180+1"]
[EndTime "10:07:31 PDT"]
[Termination "Uživatel starypomalymuz zvítězil matem"]

1. e4 {[%clk 0:03:00.9]} 1... e5 {[%clk 0:02:54.5]} 2. d4 {[%clk 0:02:59.4]}
2... exd4 {[%clk 0:02:48.2]} 3. c3 {[%clk 0:02:59.8]} 3... dxc3 {[%clk
0:02:46.7]} 4. Bc4 {[%clk 0:02:59.9]} 4... d6 {[%clk 0:02:43.5]} 5. Nf3 {[%clk
0:02:58.4]} 5... cxb2 {[%clk 0:02:40.9]} 6. Bxb2 {[%clk 0:02:57.9]} 6... Be6
{[%clk 0:02:40.6]} 7. Bxe6 {[%clk 0:02:57.4]} 7... fxe6 {[%clk 0:02:40.4]} 8.
Qb3 {[%clk 0:02:58]} 8... Nd7 {[%clk 0:02:35.3]} 9. Qxe6+ {[%clk 0:02:48.6]}
9... Qe7 {[%clk 0:02:30]} 10. Qc4 {[%clk 0:02:37.5]} 10... O-O-O {[%clk
0:02:27]} 11. O-O {[%clk 0:02:32.7]} 11... Ngf6 {[%clk 0:02:26.9]} 12. Nc3
{[%clk 0:02:29.8]} 12... Ne5 {[%clk 0:02:18.4]} 13. Nxe5 {[%clk 0:02:28.3]}
13... Qxe5 {[%clk 0:02:17]} 14. Nd5 {[%clk 0:02:03.1]} 14... Qxe4 {[%clk
0:01:55.1]} 15. Qxc7# {[%clk 0:01:57.1]} 1-0

[Event "Betsys MČR v online bleskovém šachu 2021"]
[Site "Chess.com"]
[Date "2021.04.17"]
[Round "7"]
[White "Newyork6"]
[Black "bumurubac"]
[Result "0-1"]
[WhiteElo "333"]
[BlackElo "1013"]
[TimeControl "180+1"]
[EndTime "10:07:32 PDT"]
[Termination "Uživatel bumurubac zvítězil matem"]

1. f4 {[%clk 0:01:55.1]} 1... e6 {[%clk 0:02:59.7]} 2. Nf3 {[%clk 0:01:55.3]}
2... Nf6 {[%clk 0:02:52.3]} 3. g3 {[%clk 0:01:56.2]} 3... Bc5 {[%clk 0:02:52]}
4. Bg2 {[%clk 0:01:57.1]} 4... Ng4 {[%clk 0:02:51.8]} 5. e3 {[%clk 0:01:54.2]}
5... O-O {[%clk 0:02:50.2]} 6. O-O {[%clk 0:01:54.2]} 6... Nc6 {[%clk 0:02:50]}
7. h3 {[%clk 0:01:51.7]} 7... Nf6 {[%clk 0:02:48.8]} 8. d3 {[%clk 0:01:49.4]}
8... d6 {[%clk 0:02:41.4]} 9. h4 {[%clk 0:01:50.3]} 9... e5 {[%clk 0:02:40.8]}
10. g4 {[%clk 0:01:50]} 10... exf4 {[%clk 0:02:40.3]} 11. Qe2 {[%clk 0:01:30.8]}
11... Nxg4 {[%clk 0:02:39.5]} 12. Ng5 {[%clk 0:01:24.9]} 12... h6 {[%clk
0:02:38]} 13. Ne4 {[%clk 0:01:22.3]} 13... Qxh4 {[%clk 0:02:36.9]} 14. Nxc5
{[%clk 0:01:14]} 14... Qh2# {[%clk 0:02:36.4]} 0-1

[Event "Betsys MČR v online bleskovém šachu 2021"]
[Site "Chess.com"]
[Date "2021.04.17"]
[Round "7"]
[White "Tah_na_g12"]
[Black "hvanacek"]
[Result "1-0"]
[WhiteElo "1182"]
[BlackElo "947"]
[TimeControl "180+1"]
[EndTime "10:07:41 PDT"]
[Termination "Uživatel Tah_na_g12 zvítězil matem"]

1. e4 {[%clk 0:03:00.9]} 1... e5 {[%clk 0:02:56.3]} 2. Nf3 {[%clk 0:03:00.3]}
2... Nc6 {[%clk 0:02:54.8]} 3. Bc4 {[%clk 0:02:59.4]} 3... d5 {[%clk 0:02:53.2]}
4. exd5 {[%clk 0:02:57.2]} 4... Nd4 {[%clk 0:02:52.8]} 5. Nxd4 {[%clk
0:02:55.7]} 5... exd4 {[%clk 0:02:51.4]} 6. Qf3 {[%clk 0:02:49.6]} 6... Qe7+
{[%clk 0:02:48.2]} 7. Qe2 {[%clk 0:02:36.7]} 7... Qxe2+ {[%clk 0:02:43.5]} 8.
Bxe2 {[%clk 0:02:37.6]} 8... d3 {[%clk 0:02:43.5]} 9. Bxd3 {[%clk 0:02:34.8]}
9... Bg4 {[%clk 0:02:43]} 10. O-O {[%clk 0:02:33.5]} 10... Bc5 {[%clk 0:02:43]}
11. Re1+ {[%clk 0:02:32.6]} 11... Kd8 {[%clk 0:02:41.6]} 12. Bc4 {[%clk
0:02:26.6]} 12... Kc8 {[%clk 0:02:42.5]} 13. d3 {[%clk 0:02:24.1]} 13... Kb8
{[%clk 0:02:43.4]} 14. Re8+ {[%clk 0:02:15.3]} 14... Bc8 {[%clk 0:02:40.8]} 15.
Bf4 {[%clk 0:02:12.7]} 15... Ne7 {[%clk 0:02:21.4]} 16. Rxh8 {[%clk 0:02:09.4]}
16... Ng8 {[%clk 0:02:17.3]} 17. d6 {[%clk 0:01:55]} 17... cxd6 {[%clk
0:02:13.9]} 18. Bxf7 {[%clk 0:01:54.2]} 18... Bxf2+ {[%clk 0:02:08.1]} 19. Kxf2
{[%clk 0:01:51.4]} 19... Nf6 {[%clk 0:02:03.1]} 20. Bxd6# {[%clk 0:01:50.5]} 1-0

[Event "Betsys MČR v online bleskovém šachu 2021"]
[Site "Chess.com"]
[Date "2021.04.17"]
[Round "7"]
[White "HerjoAnpe"]
[Black "AdeeJa"]
[Result "0-1"]
[WhiteElo "1232"]
[BlackElo "1613"]
[TimeControl "180+1"]
[EndTime "10:07:43 PDT"]
[Termination "Uživatel AdeeJa zvítězil matem"]

1. d4 {[%clk 0:02:59.3]} 1... Nf6 {[%clk 0:02:57.6]} 2. Nf3 {[%clk 0:02:59.2]}
2... g6 {[%clk 0:02:58.5]} 3. e3 {[%clk 0:02:59.2]} 3... Bg7 {[%clk 0:02:59.4]}
4. c3 {[%clk 0:02:59.3]} 4... d6 {[%clk 0:03:00.3]} 5. Bd3 {[%clk 0:02:59.3]}
5... O-O {[%clk 0:03:01.2]} 6. Nbd2 {[%clk 0:02:59.5]} 6... Nc6 {[%clk
0:02:56.9]} 7. O-O {[%clk 0:02:58.8]} 7... e5 {[%clk 0:02:56.9]} 8. Qe2 {[%clk
0:02:55.1]} 8... Re8 {[%clk 0:02:51.3]} 9. dxe5 {[%clk 0:02:43.5]} 9... dxe5
{[%clk 0:02:47]} 10. Ne4 {[%clk 0:02:40]} 10... Nxe4 {[%clk 0:02:43.1]} 11. Bxe4
{[%clk 0:02:39.5]} 11... f5 {[%clk 0:02:43.4]} 12. Bxc6 {[%clk 0:02:37.4]} 12...
bxc6 {[%clk 0:02:43.5]} 13. Rd1 {[%clk 0:02:34.3]} 13... Qe7 {[%clk 0:02:43.6]}
14. Ne1 {[%clk 0:02:29.9]} 14... Bb7 {[%clk 0:02:42.6]} 15. Nd3 {[%clk
0:02:27.6]} 15... c5 {[%clk 0:02:42.5]} 16. Bd2 {[%clk 0:02:24.3]} 16... Ba6
{[%clk 0:02:42.3]} 17. Re1 {[%clk 0:02:22]} 17... e4 {[%clk 0:02:42.2]} 18. Nf4
{[%clk 0:02:15.5]} 18... Bxe2 {[%clk 0:02:40.1]} 19. Rxe2 {[%clk 0:02:14.9]}
19... Red8 {[%clk 0:02:38.7]} 20. Be1 {[%clk 0:02:13.8]} 20... Rd6 {[%clk
0:02:37.6]} 21. f3 {[%clk 0:02:08]} 21... exf3 {[%clk 0:02:36.5]} 22. gxf3
{[%clk 0:02:07.2]} 22... Rad8 {[%clk 0:02:35.6]} 23. Bg3 {[%clk 0:02:01.8]}
23... Rd1+ {[%clk 0:02:34.3]} 24. Rxd1 {[%clk 0:01:58.8]} 24... Rxd1+ {[%clk
0:02:33.7]} 25. Kg2 {[%clk 0:01:59.6]} 25... Qd7 {[%clk 0:02:20.1]} 26. Kh3
{[%clk 0:01:57.5]} 26... g5 {[%clk 0:02:16.7]} 27. Ng2 {[%clk 0:01:55.8]} 27...
f4# {[%clk 0:02:16.3]} 0-1

[Event "Betsys MČR v online bleskovém šachu 2021"]
[Site "Chess.com"]
[Date "2021.04.17"]
[Round "7"]
[White "vozmenmarcel"]
[Black "misacz"]
[Result "1-0"]
[WhiteElo "1859"]
[BlackElo "1084"]
[TimeControl "180+1"]
[EndTime "10:07:49 PDT"]
[Termination "Uživatel vozmenmarcel zvítězil po vzdání soupeře"]

1. e4 {[%clk 0:03:00.9]} 1... e6 {[%clk 0:02:58.1]} 2. f4 {[%clk 0:02:57.7]}
2... d5 {[%clk 0:02:57.5]} 3. e5 {[%clk 0:02:57.7]} 3... c5 {[%clk 0:02:56.7]}
4. Nf3 {[%clk 0:02:52.3]} 4... Nc6 {[%clk 0:02:54]} 5. d3 {[%clk 0:02:52.1]}
5... Bd7 {[%clk 0:02:49.4]} 6. Nc3 {[%clk 0:02:50]} 6... Nh6 {[%clk 0:02:48.5]}
7. g3 {[%clk 0:02:48.7]} 7... Nf5 {[%clk 0:02:46.9]} 8. Bg2 {[%clk 0:02:48.5]}
8... Be7 {[%clk 0:02:32.9]} 9. O-O {[%clk 0:02:47.5]} 9... O-O {[%clk
0:02:31.3]} 10. g4 {[%clk 0:02:46.1]} 10... Nfd4 {[%clk 0:02:29.2]} 11. Ne2
{[%clk 0:02:40.6]} 11... Nxe2+ {[%clk 0:02:22.8]} 12. Qxe2 {[%clk 0:02:39.5]}
12... Qb6 {[%clk 0:02:06.3]} 13. c3 {[%clk 0:02:30.3]} 13... c4+ {[%clk
0:02:05.2]} 14. d4 {[%clk 0:02:29.4]} 14... f6 {[%clk 0:01:55.2]} 15. Kh1 {[%clk
0:02:24.7]} 15... fxe5 {[%clk 0:01:53.1]} 16. dxe5 {[%clk 0:02:23.2]} 16... Qd8
{[%clk 0:01:38.3]} 17. Qf2 {[%clk 0:02:18]} 17... Bh4 {[%clk 0:01:34.7]} 18.
Qxh4 {[%clk 0:02:16.7]} 18... Qxh4 {[%clk 0:01:34.2]} 19. Nxh4 {[%clk
0:02:15.8]} 1-0

[Event "Betsys MČR v online bleskovém šachu 2021"]
[Site "Chess.com"]
[Date "2021.04.17"]
[Round "7"]
[White "kominekmart"]
[Black "Tomasn2003"]
[Result "1-0"]
[WhiteElo "1574"]
[BlackElo "1134"]
[TimeControl "180+1"]
[EndTime "10:07:56 PDT"]
[Termination "Uživatel kominekmart zvítězil po vzdání soupeře"]

1. e4 {[%clk 0:03:00.9]} 1... c5 {[%clk 0:02:58.9]} 2. Nf3 {[%clk 0:02:56.2]}
2... d6 {[%clk 0:02:57.5]} 3. c3 {[%clk 0:02:53]} 3... Nc6 {[%clk 0:02:56.6]} 4.
d4 {[%clk 0:02:51.6]} 4... cxd4 {[%clk 0:02:56.1]} 5. cxd4 {[%clk 0:02:51.3]}
5... Nf6 {[%clk 0:02:47.9]} 6. Be2 {[%clk 0:02:32.9]} 6... g6 {[%clk 0:02:45.9]}
7. O-O {[%clk 0:02:28.5]} 7... Nxe4 {[%clk 0:02:42.6]} 8. d5 {[%clk 0:02:25.2]}
8... Ne5 {[%clk 0:02:41.3]} 9. Qa4+ {[%clk 0:02:24]} 9... Bd7 {[%clk 0:02:32.5]}
10. Qxe4 {[%clk 0:02:23.2]} 10... Bg7 {[%clk 0:02:32]} 11. Nc3 {[%clk
0:02:15.1]} 11... Nxf3+ {[%clk 0:02:30.8]} 12. Qxf3 {[%clk 0:02:07.4]} 12... h5
{[%clk 0:02:25.1]} 13. Bg5 {[%clk 0:02:05]} 13... Bg4 {[%clk 0:02:21.8]} 14. Qe3
{[%clk 0:01:54.4]} 14... Bxe2 {[%clk 0:02:14]} 15. Qxe2 {[%clk 0:01:51]} 15...
Bxc3 {[%clk 0:02:13.9]} 16. bxc3 {[%clk 0:01:50.4]} 16... Rc8 {[%clk 0:02:13.6]}
17. Rfe1 {[%clk 0:01:48.3]} 17... Rc7 {[%clk 0:02:09]} 18. Qb5+ {[%clk
0:01:45.2]} 18... Qd7 {[%clk 0:02:07.9]} 19. Rxe7+ {[%clk 0:01:34.5]} 1-0

[Event "Betsys MČR v online bleskovém šachu 2021"]
[Site "Chess.com"]
[Date "2021.04.17"]
[Round "7"]
[White "handlovskyjachym"]
[Black "Berzeger"]
[Result "1-0"]
[WhiteElo "1328"]
[BlackElo "1029"]
[TimeControl "180+1"]
[EndTime "10:08:04 PDT"]
[Termination "Uživatel handlovskyjachym zvítězil po vzdání soupeře"]

1. e4 {[%clk 0:03:00.3]} 1... e5 {[%clk 0:03:00]} 2. Nf3 {[%clk 0:03:00.2]} 2...
Nc6 {[%clk 0:03:00.3]} 3. Bc4 {[%clk 0:02:59.6]} 3... Bc5 {[%clk 0:02:59.8]} 4.
d3 {[%clk 0:02:59.3]} 4... d6 {[%clk 0:02:58.2]} 5. h3 {[%clk 0:02:58.7]} 5...
Nf6 {[%clk 0:02:54.9]} 6. Bg5 {[%clk 0:02:56.5]} 6... h6 {[%clk 0:02:53.1]} 7.
Bh4 {[%clk 0:02:54]} 7... O-O {[%clk 0:02:39.5]} 8. Nc3 {[%clk 0:02:53.2]} 8...
Be6 {[%clk 0:02:34.6]} 9. Bb3 {[%clk 0:02:49.3]} 9... Bxb3 {[%clk 0:02:21]} 10.
axb3 {[%clk 0:02:48.7]} 10... a6 {[%clk 0:02:21.2]} 11. Nd5 {[%clk 0:02:48.3]}
11... Nd4 {[%clk 0:01:59.6]} 12. O-O {[%clk 0:02:40]} 12... g5 {[%clk
0:01:46.8]} 13. Nxg5 {[%clk 0:02:30.9]} 13... hxg5 {[%clk 0:01:43.8]} 14. Bxg5
{[%clk 0:02:30.8]} 14... Qd7 {[%clk 0:00:57.3]} 15. Nxf6+ {[%clk 0:02:29.1]} 1-0

[Event "Betsys MČR v online bleskovém šachu 2021"]
[Site "Chess.com"]
[Date "2021.04.17"]
[Round "7"]
[White "Devasales"]
[Black "tryskomys"]
[Result "0-1"]
[WhiteElo "1654"]
[BlackElo "1556"]
[TimeControl "180+1"]
[EndTime "10:08:05 PDT"]
[Termination "Uživatel tryskomys zvítězil po vzdání soupeře"]

1. e4 {[%clk 0:03:00.9]} 1... e5 {[%clk 0:02:57.6]} 2. Nf3 {[%clk 0:03:00.1]}
2... Nc6 {[%clk 0:02:57.2]} 3. Bb5 {[%clk 0:02:59.4]} 3... a6 {[%clk 0:02:56.1]}
4. Ba4 {[%clk 0:02:59.4]} 4... Nf6 {[%clk 0:02:56.1]} 5. O-O {[%clk 0:02:58.5]}
5... Nxe4 {[%clk 0:02:56.1]} 6. Re1 {[%clk 0:02:57.8]} 6... Nc5 {[%clk
0:02:54.7]} 7. Nxe5 {[%clk 0:02:37.1]} 7... Nxe5 {[%clk 0:02:47.5]} 8. Rxe5+
{[%clk 0:02:36.2]} 8... Be7 {[%clk 0:02:47.4]} 9. Bb3 {[%clk 0:02:28.4]} 9...
Nxb3 {[%clk 0:02:46.6]} 10. axb3 {[%clk 0:02:27.9]} 10... O-O {[%clk 0:02:41.5]}
11. Nc3 {[%clk 0:02:24.7]} 11... Bf6 {[%clk 0:02:36.3]} 12. Re1 {[%clk 0:02:24]}
12... d5 {[%clk 0:02:32.7]} 13. d3 {[%clk 0:02:22.9]} 13... c5 {[%clk
0:02:24.3]} 14. Qf3 {[%clk 0:02:18.6]} 14... Be6 {[%clk 0:02:20.2]} 15. Bd2
{[%clk 0:02:01.6]} 15... Qd7 {[%clk 0:02:19.1]} 16. Re2 {[%clk 0:02:00]} 16...
Bg4 {[%clk 0:02:08.6]} 17. Qg3 {[%clk 0:01:59.3]} 17... Bxe2 {[%clk 0:02:07.7]}
18. Bh6 {[%clk 0:01:57.4]} 18... Bh5 {[%clk 0:01:54.9]} 0-1

[Event "Betsys MČR v online bleskovém šachu 2021"]
[Site "Chess.com"]
[Date "2021.04.17"]
[Round "7"]
[White "sachmaty8"]
[Black "OndrejBorkovec"]
[Result "1-0"]
[WhiteElo "1827"]
[BlackElo "1507"]
[TimeControl "180+1"]
[EndTime "10:08:07 PDT"]
[Termination "Uživatel sachmaty8 zvítězil matem"]

1. e4 {[%clk 0:03:00.9]} 1... e6 {[%clk 0:02:58.5]} 2. d4 {[%clk 0:02:58.3]}
2... d5 {[%clk 0:02:57.4]} 3. Nc3 {[%clk 0:02:58.6]} 3... dxe4 {[%clk
0:02:57.1]} 4. Nxe4 {[%clk 0:02:58.2]} 4... Nf6 {[%clk 0:02:57.1]} 5. Bd3 {[%clk
0:02:51.8]} 5... b6 {[%clk 0:02:55.4]} 6. c3 {[%clk 0:02:49.1]} 6... Bb7 {[%clk
0:02:55.2]} 7. Qe2 {[%clk 0:02:49.2]} 7... Nc6 {[%clk 0:02:53.4]} 8. f4 {[%clk
0:02:47.9]} 8... Qd7 {[%clk 0:02:52.8]} 9. Nf3 {[%clk 0:02:47.3]} 9... O-O-O
{[%clk 0:02:52.3]} 10. O-O {[%clk 0:02:46.7]} 10... Be7 {[%clk 0:02:51.9]} 11.
b4 {[%clk 0:02:40.1]} 11... Nxe4 {[%clk 0:02:45.5]} 12. Bxe4 {[%clk 0:02:39.1]}
12... f5 {[%clk 0:02:40.7]} 13. Bd3 {[%clk 0:02:34]} 13... h6 {[%clk 0:02:38.5]}
14. a4 {[%clk 0:02:32.3]} 14... g5 {[%clk 0:02:33]} 15. a5 {[%clk 0:02:30.4]}
15... g4 {[%clk 0:02:26.1]} 16. Ne5 {[%clk 0:02:23.5]} 16... Nxe5 {[%clk
0:02:23.5]} 17. Qxe5 {[%clk 0:02:24.4]} 17... Bd6 {[%clk 0:02:20.9]} 18. Qe2
{[%clk 0:02:21]} 18... h5 {[%clk 0:02:20.4]} 19. Bc4 {[%clk 0:02:20.1]} 19...
Rde8 {[%clk 0:02:19]} 20. Re1 {[%clk 0:02:17.9]} 20... Qg7 {[%clk 0:02:08.3]}
21. axb6 {[%clk 0:02:14.6]} 21... cxb6 {[%clk 0:02:07.5]} 22. Rxa7 {[%clk
0:02:05.4]} 22... Qf6 {[%clk 0:02:01.6]} 23. Ba6 {[%clk 0:02:02]} 23... Bxa6
{[%clk 0:01:49.9]} 24. Qxa6+ {[%clk 0:02:00.3]} 24... Kd8 {[%clk 0:01:49.4]} 25.
Qxb6+ {[%clk 0:01:58.4]} 25... Kc8 {[%clk 0:01:46.8]} 26. Qb7+ {[%clk
0:01:58.6]} 26... Kd8 {[%clk 0:01:46.2]} 27. Qd7# {[%clk 0:01:59.3]} 1-0

[Event "Betsys MČR v online bleskovém šachu 2021"]
[Site "Chess.com"]
[Date "2021.04.17"]
[Round "7"]
[White "psvoboda72"]
[Black "JosefBara"]
[Result "1-0"]
[WhiteElo "1719"]
[BlackElo "1308"]
[TimeControl "180+1"]
[EndTime "10:08:07 PDT"]
[Termination "Uživatel psvoboda72 zvítězil po vzdání soupeře"]

1. Nf3 {[%clk 0:02:59.3]} 1... e6 {[%clk 0:03:00.2]} 2. b3 {[%clk 0:02:57.6]}
2... d5 {[%clk 0:03:00.4]} 3. Bb2 {[%clk 0:02:57.3]} 3... c5 {[%clk 0:03:00.7]}
4. e3 {[%clk 0:02:57.4]} 4... Nc6 {[%clk 0:03:01]} 5. Bb5 {[%clk 0:02:55.9]}
5... Bd7 {[%clk 0:03:00.6]} 6. Bxc6 {[%clk 0:02:52.3]} 6... Bxc6 {[%clk
0:03:00.5]} 7. O-O {[%clk 0:02:51.9]} 7... Nf6 {[%clk 0:03:00.8]} 8. d3 {[%clk
0:02:50.6]} 8... Be7 {[%clk 0:03:00.8]} 9. Ne5 {[%clk 0:02:50.8]} 9... Bd7
{[%clk 0:02:54.6]} 10. Nd2 {[%clk 0:02:50.2]} 10... O-O {[%clk 0:02:54.3]} 11.
f4 {[%clk 0:02:49.1]} 11... Bd6 {[%clk 0:02:49.9]} 12. Ng4 {[%clk 0:02:45.4]}
12... Nxg4 {[%clk 0:02:44.2]} 13. Qxg4 {[%clk 0:02:41.6]} 13... g6 {[%clk
0:02:41.2]} 14. Qh3 {[%clk 0:02:24.2]} 14... e5 {[%clk 0:02:34.8]} 15. g4 {[%clk
0:02:23]} 15... d4 {[%clk 0:02:29.4]} 16. Ne4 {[%clk 0:02:16.6]} 16... Be7
{[%clk 0:02:24.4]} 17. fxe5 {[%clk 0:02:12.8]} 17... Qc8 {[%clk 0:02:20.5]} 18.
Nf6+ {[%clk 0:01:41.9]} 18... Bxf6 {[%clk 0:02:15.6]} 19. exf6 {[%clk
0:01:40.6]} 19... Bxg4 {[%clk 0:02:12.3]} 20. Qh6 {[%clk 0:01:36.3]} 1-0

[Event "Betsys MČR v online bleskovém šachu 2021"]
[Site "Chess.com"]
[Date "2021.04.17"]
[Round "7"]
[White "vasekpaulus"]
[Black "petiva3"]
[Result "1-0"]
[WhiteElo "2054"]
[BlackElo "1405"]
[TimeControl "180+1"]
[EndTime "10:08:18 PDT"]
[Termination "Uživatel vasekpaulus zvítězil matem"]

1. e4 {[%clk 0:03:00.9]} 1... e5 {[%clk 0:02:59.8]} 2. Nf3 {[%clk 0:03:01]} 2...
Nc6 {[%clk 0:02:59.9]} 3. Bb5 {[%clk 0:03:00.9]} 3... d6 {[%clk 0:02:55]} 4. O-O
{[%clk 0:03:00.7]} 4... a6 {[%clk 0:02:55.4]} 5. Ba4 {[%clk 0:03:00.2]} 5... b5
{[%clk 0:02:54.1]} 6. Bb3 {[%clk 0:03:00.1]} 6... Bb7 {[%clk 0:02:54.3]} 7. c3
{[%clk 0:02:59.7]} 7... Nf6 {[%clk 0:02:54]} 8. Re1 {[%clk 0:03:00.1]} 8... Be7
{[%clk 0:02:54]} 9. d4 {[%clk 0:03:00.3]} 9... exd4 {[%clk 0:02:53.6]} 10. cxd4
{[%clk 0:03:00.2]} 10... O-O {[%clk 0:02:51.1]} 11. Nc3 {[%clk 0:02:58.8]} 11...
Qd7 {[%clk 0:02:42.3]} 12. h3 {[%clk 0:02:56.8]} 12... h6 {[%clk 0:02:22.4]} 13.
a3 {[%clk 0:02:55.9]} 13... Nh7 {[%clk 0:02:21.6]} 14. Bf4 {[%clk 0:02:48.5]}
14... Rae8 {[%clk 0:02:08.4]} 15. Qd2 {[%clk 0:02:46.4]} 15... g5 {[%clk
0:01:54.6]} 16. Bg3 {[%clk 0:02:40.6]} 16... Kh8 {[%clk 0:01:50.5]} 17. Bc2
{[%clk 0:02:37.9]} 17... Bf6 {[%clk 0:01:43.4]} 18. Qd3 {[%clk 0:02:35.6]} 18...
g4 {[%clk 0:01:25.1]} 19. e5 {[%clk 0:02:34]} 19... Ng5 {[%clk 0:01:19.5]} 20.
Nxg5 {[%clk 0:02:33]} 20... Bxg5 {[%clk 0:00:54.1]} 21. Qh7# {[%clk 0:02:29.8]}
1-0